Cogmind - Beta 10.1 @@@ ROGUE MODE // 2020.11.04 @ 11:26:23 Player: Demise Result: Destroyed by D-53 Grenadier with Mini Grenade Launcher Performance ------------- Evolutions (0) 0 Regions Visited (2) 400 Robots Destroyed (29) 145 Value Destroyed (471) 471 Prototype IDs (0) 0 Alien Tech Used (0) 0 Bonus (35) 35 TOTAL SCORE: 1051 Bonus ------- Follower Combat Kills 35 Cogmind --------- Core Integrity 0/250 Matter 285/300 Energy 83/100 System Corruption 2% Temperature Cool (258) Movement Core (550) Ox10 Location -10/Mines Parts ------- > --- POWER (1) -------- (None) > --- PROPULSION (2) --- (None) > --- UTILITY (2) ------ Large Storage Unit Large Storage Unit > --- WEAPON (2) ------- (None) > --- INVENTORY (16) --- Improved Heat Sink Medium Storage Unit Large Battery (300) Medium Matter Pod (100) Sensor Array Hacking Suite Assault Rifle Assault Rifle Assault Rifle Light Assault Rifle Light Assault Rifle Light Assault Rifle Datajack Mining Laser Peak State ------------ > --- POWER ------------ Ion Engine > --- PROPULSION ------- Light Treads Light Treads > --- UTILITY ---------- Large Storage Unit Large Storage Unit > --- WEAPON ----------- EM Shotgun Plasma Flamer > --- INVENTORY -------- Ion Engine Improved Heat Sink Medium Storage Unit Large Battery Medium Matter Pod Sensor Array Hacking Suite Assault Rifle Assault Rifle Assault Rifle Light Assault Rifle Light Assault Rifle Light Assault Rifle Light Cannon Datajack Mining Laser [Rating: 14] Favorites ----------- Power Ion Engine Engine Ion Engine Propulsion Light Treads Treads Light Treads Leg Aluminum Leg Utility Large Storage Unit Device Improved Terrain Scanner Storage Large Storage Unit Processor Signal Interpreter Weapon EM Shotgun Energy Gun EM Shotgun Ballistic Gun Light Assault Rifle Ballistic Cannon Light Cannon Special Weapon Mining Laser Build | -11 -10 -10 ------- Run | Scr Mat Min Slots Evolved . | . . . Power . | . . . Propulsion . | . . . Utility . | . . . Weapon . | . . . Parts Attached 20 | 4 10 6 Power 2 | . 1 1 Engine 2 | . 1 1 Core . | . . . Reactor . | . . . Propulsion 2 | 2 . . Treads 2 | 2 . . Leg . | . . . Wheel . | . . . Hover . | . . . Flight . | . . . Utility 4 | 1 3 . Device 1 | 1 . . Storage 2 | . 2 . Processor 1 | . 1 . Hackware . | . . . Protection . | . . . Artifact . | . . . Weapon 12 | 1 6 5 Energy Gun 8 | 1 5 2 Energy Cannon . | . . . Ballistic Gun . | . . . Ballistic Cannon 1 | . . 1 Launcher . | . . . Special Weapon 3 | . 1 2 Impact Weapon . | . . . Slashing Weapon . | . . . Piercing Weapon . | . . . Special Melee Weapon . | . . . Unidentified Prototypes . | . . . Parts Lost 8 | . 1 7 Power 2 | . . 2 Propulsion 2 | . . 2 Utility . | . . . Weapon 4 | . 1 3 Highest Loss Streak 7 | . 1 7 Average Slot Usage (%) 98 | . 99 96 Engine 13 | . 14 13 Treads 27 | . 28 26 Storage 19 | . 16 28 Processor 7 | . 10 . Energy Gun 25 | . 25 25 Naked Turns . | . . . Heaviest Build 43 | 10 43 43 Greatest Support 40 | 40 40 40 Greatest Overweight (x) 11 | . 1 11 Average Overweight (x) . | . . 1 Largest Inventory Capacity 16 | 6 16 16 Average Capacity 10 | 6 9 16 Most Carried 16 | 6 16 16 Average Carried 10 | 5 8 15 Final Capacity 16 | 6 16 16 Final Carried 16 | 6 16 14 Class Distribution -------------------- 100% | Mutant Dominant Class ---------------- Mutant | -10/Materials Mutant | -10/Mines Resources | -11 -10 -10 ----------- Run | Scr Mat Min Matter Collected 529 | 319 164 46 Remotely . | . . . Salvage Created 856 | 169 578 109 Parts 62 | 18 38 6 Haulers Intercepted 1 | . 1 . Recyclers Shooed . | . . . Parts Field Recycled . | . . . Retrieved Matter . | . . . Parts Self-Destructed . | . . . Prevented . | . . . Kills | -11 -10 -10 ------- Run | Scr Mat Min Combat Hostiles Destroyed 16 | . 12 4 Guns 15 | . 11 4 AOE 1 | . 1 . Classes Destroyed 10 | 3 6 1 Worker 3 | 2 1 . Builder 1 | . 1 . Tunneler 4 | 4 . . Hauler 1 | . 1 . Recycler 1 | 1 . . Operator 1 | . 1 . Watcher 2 | . 2 . Swarmer 6 | . 4 2 Grunt 9 | . 8 1 Assembled 1 | . . 1 Best Kill Streak 5 | 4 5 2 Combat Bots Only 4 | . 4 2 Max Kills in Single Turn 2 | 1 2 1 Gunslinging . | . . . Exploded 1 | . 1 . Melee . | . . . Uniques/NPCs Destroyed . | . . . Combat | -11 -10 -10 -------- Run | Scr Mat Min Damage Taken 1063 | . 345 718 Core 258 | . 33 225 Absorbed by Shields . | . . . Core Remaining (%) 100 | 100 . . Volleys Fired 72 | 22 38 12 Largest 2 | 2 2 2 Hottest 145 | 60 100 145 Shots Fired 135 | 44 69 22 Gun 124 | 44 62 18 Cannon . | . . . Launcher . | . . . Special 11 | . 7 4 Kinetic 41 | 41 . . Thermal 14 | 3 7 4 Explosive . | . . . Electromagnetic 80 | . 62 18 Robot Hit Streak 18 | 15 18 9 Robot Miss Streak 2 | 2 2 2 Penetration Max . | . . . Secondary Targets 1 | . 1 . Max Gunslinging Chain 1 | . 1 . Shots Hit Robots 99 | 32 48 19 Core Hits 56 | 11 33 12 Critical Hits . | . . . Critical Kills . | . . . Critical Parts Destroyed . | . . . Melee Attacks . | . . . Impact . | . . . Slashing . | . . . Piercing . | . . . Sneak Attacks . | . . . Combat Hostiles . | . . . Follow-up Attacks . | . . . Damage Inflicted 1343 | 352 781 210 Guns 1186 | 352 651 183 Cannons . | . . . Explosions 130 | . 130 . Melee . | . . . Ramming . | . . . Kinetic 317 | 317 . . Thermal 192 | 35 130 27 Explosive . | . . . Electromagnetic 834 | . 651 183 Impact . | . . . Slashing . | . . . Piercing . | . . . Highest Corruption 2 | . . 2 Average Corruption 2 | . . 2 Corruption Purged . | . . . Overload Shots . | . . . Overflow Damage . | . . . Projectiles . | . . . Explosions . | . . . Melee . | . . . Knockbacks . | . . . Impact . | . . . Kinetic . | . . . Secondary . | . . . Self-Inflicted Damage 42 | . 42 . Shots 1 | . 1 . Rammed . | . . . Targets Rammed . | . . . Kicked . | . . . Crushed . | . . . Highest Temperature 373 | 40 306 373 Average Temperature 80 | 23 69 126 Received Heat Transfer 244 | . 78 166 Effects 2 | . . 2 Shutdowns 1 | . . 1 Energy Bleed 1 | . . 1 Siege Activations . | . . . Robots Corrupted . | . . . Combat Hostiles . | . . . Parts Fried 3 | . 3 . Impact Corruptions . | . . . Robots Melted . | . . . Combat Hostiles . | . . . Parts Melted . | . . . Heat Transferred 385 | 75 150 160 Parts Sabotaged . | . . . Parts Stolen . | . . . Parts Stripped . | . . . Power Chain Reactions 1 | . 1 . Missiles Intercepted . | . . . Alert | -11 -10 -10 ------- Run | Scr Mat Min Peak Influence 297 | 35 297 151 Initial 40 | . 22 40 Average 83 | 16 90 100 Maximum Alert Level 1 | . 1 . Low Security (%) 90 | 100 85 100 Level 1 9 | . 14 . Level 2 . | . . . Level 3 . | . . . Level 4 . | . . . Level 5 . | . . . High Security . | . . . Max Security . | . . . Squads Dispatched 3 | . 3 . Investigation 2 | . 2 . Extermination . | . . . Reinforcement 1 | . 1 . Assault . | . . . Garrison . | . . . Intercept . | . . . Construction Impeded . | . . . Haulers Reinforced . | . . . Stealth | -11 -10 -10 --------- Run | Scr Mat Min Distress Signals 1 | . 1 . Communications Jammed . | . . . Distress Signals . | . . . Times Spotted 46 | . 21 25 Peak Tracking Total 14 | . 5 14 Tactical Retreats 3 | . 1 2 Traps | -11 -10 -10 ------- Run | Scr Mat Min Traps Triggered 1 | . 1 . Indirectly . | . . . Trap Hack Attempts . | . . . Triggered . | . . . Disarmed . | . . . Reprogrammed . | . . . Reused . | . . . Traps Extracted . | . . . Installed . | . . . Triggered . | . . . Machines | -11 -10 -10 ---------- Run | Scr Mat Min Machines Disabled . | . . . Max in Single Turn . | . . . Machines Sabotaged . | . . . Garrisons Compromised . | . . . Overloaded Fab Kills . | . . . Fab Network Shutdowns . | . . . Hacking | -11 -10 -10 --------- Run | Scr Mat Min Machines Accessed 6 | . 6 . Terminals 5 | . 5 . Fabricators . | . . . Repair Stations . | . . . Recycling Units 1 | . 1 . Scanalyzers . | . . . Garrison Access . | . . . Total Hacks 21 | . 21 . Successful 12 | . 12 . Failed 9 | . 9 . Catastrophic . | . . . Database Lockouts . | . . . Manual 13 | . 13 . Terminals 20 | . 20 . Fabricators . | . . . Repair Stations . | . . . Recycling Units 1 | . 1 . Scanalyzers . | . . . Garrison Access . | . . . Terminal Hacks 5 | . 5 . Robot Analysis 1 | . 1 . Unreport Threat 1 | . 1 . Locate Traps 1 | . 1 . Zone Layout 2 | . 2 . Fabricator Hacks . | . . . Repair Station Hacks . | . . . Recycling Unit Hacks . | . . . Scanalyzer . | . . . Garrison Access Hacks . | . . . Unauthorized Hacks 7 | . 7 . Terminals 6 | . 6 . Track 1 | . 1 . Botnet 4 | . 4 . Operators 1 | . 1 . Fabricators . | . . . Repair Stations . | . . . Recycling Units 1 | . 1 . Tunnel 1 | . 1 . Scanalyzers . | . . . Garrison Access . | . . . Data Cores Recovered . | . . . Used . | . . . Hacking Detections 5 | . 5 . Full Trace Events 1 | . 1 . Feedback Events . | . . . Feedback Blocked . | . . . Robot Schematics Acquired . | . . . Robots Built . | . . . Matter . | . . . Time . | . . . Total Robot Build Rating . | . . . Part Schematics Acquired . | . . . Parts Built . | . . . Matter . | . . . Time . | . . . Total Part Build Rating . | . . . Parts Repaired . | . . . Time . | . . . Parts Recycled . | . . . Recycled Matter . | . . . Retrieved Matter . | . . . Retrieved Components . | . . . Parts Scanalyzed . | . . . Part Schematics Acquired . | . . . Parts Damaged . | . . . Bothacking | -11 -10 -10 ------------ Run | Scr Mat Min Used RIF Installer . | . . . Robots Hacked . | . . . Non-combat . | . . . Combat . | . . . Robot Hacks Applied . | . . . Relay Couplers Released . | . . . Robots Rewired . | . . . Allies Hacked . | . . . Hacks Repelled . | . . . Allies | -11 -10 -10 -------- Run | Scr Mat Min Total Allies 2 | . . 2 Largest Group 2 | . . 2 Highest-Rated Group 42 | . . 42 Highest-Rated Ally 31 | . . 31 Total Orders . | . . . Ally Attacks 8 | . . 8 Total Damage 85 | . . 85 Kills 1 | . . 1 Allies Corrupted 1 | . . 1 Allies Melted . | . . . Intel | -11 -10 -10 ------- Run | Scr Mat Min Robot Analysis Total 1 | . 1 . Derelict Logs Recovered . | . . . Drone Launches . | . . . Drone Recoveries . | . . . Exploration | -11 -10 -10 ------------- Run | Scr Mat Min Turns Passed 1150 | 136 731 283 Spaces Moved 507 | 44 334 129 Core 2 | . . 2 Treads 487 | 26 334 127 Legs 18 | 18 . . Wheels . | . . . Hover . | . . . Flight . | . . . Fastest Speed 120 | 120 160 160 Average Speed 166 | 143 162 185 Slowest Speed 600 | 160 180 600 Overloaded Moves . | . . . Propulsion Burnouts . | . . . Robots Hopped . | . . . Cave-ins Triggered . | . . . Exploration Rate (%) 32 | 3 64 30 Regions Visited 2 Branch Regions 1 Pre-discovered Areas 1 | . 1 . Known Exits Taken 1 | . 1 . Unknown Exits Taken 1 | 1 . . Scrap Searched . | . . . Spaces Dug . | . . . Terrain Destroyed 7 | . 7 . Melee . | . . . Projectile 1 | . 1 . AOE 6 | . 6 . Terrain Rammed . | . . . Walls Destroyed . | . . . Machines Disabled . | . . . Actions | -11 -10 -10 --------- Run | Scr Mat Min Total 675 | 77 443 155 Wait 36 | 4 30 2 Move 505 | 43 333 129 Hop . | . . . Pick Up 23 | 2 19 2 Fast Attach 6 | 1 3 2 Attach 7 | 2 2 3 Detach 1 | . 1 . Swap 7 | 1 5 1 Drop 18 | 2 12 4 Fire 72 | 22 38 12 Melee . | . . . Ram . | . . . Kick . | . . . Crush . | . . . Escape Stasis . | . . . Rewire . | . . . Trap . | . . . Miscellaneous . | . . . Route ------- -11/Scrapyard -10/Materials (discovered 3 exits: [*Mat] / *Min x2) -10/Mines (discovered 1 exit: [*Mat]) History --------- Turn | Location | Event 27 | -11/Scrapyard | Discovered new exit (range 3) 137 | -11/Scrapyard | Entered Materials 310 | -10/Materials | Build established: Mutant 503 | -10/Materials | Discovered new exit (range 5) 538 | -10/Materials | Discovered new exit (range 11) 556 | -10/Materials | Identified exit to Mines 673 | -10/Materials | Discovered exit to Mines (range 11) 868 | -10/Materials | Entered Mines 953 | -10/Mines | Discovered new exit (range 11) 1072 | -10/Mines | A weapon hastily lodged in a ceiling crevice suddenly fell to the ground 1104 | -10/Mines | Assembled infested the area 1136 | -10/Mines | Core integrity fell below 50% 1149 | -10/Mines | Core integrity fell below 20% 1151 | -10/Mines | Destroyed by D-53 Grenadier with Mini Grenade Launcher Last Messages --------------- 01085_ Dropped Lgt. Cannon. 01085_ Acquired EM Shotgun. 01104_ ALERT: Infestation in the mines, dispatching Demolisher response squad. 01114_ Ion Engine destroyed. 01120_ OC-G4C(g) system corrupted by crushing effect. 01121_ OC-G4C(g) system terminally corrupted. 01121_ 1N-T1T(z) destroyed. 01129_ EM Shotgun destroyed. 01129_ System corrupted by crushing effect (+2). 01136_ as-14847 destroyed. 01137_ EM Shotgun destroyed. 01139_ Lgt. Treads destroyed. 01141_ Power failure, Ion Engine shutdown. 01142_ as-56176 shuts down. 01142_ Lgt. Treads destroyed. 01143_ Overheating: Energy bleed (-9). 01143_ Ion Engine destroyed. 01146_ Plasma Flamer destroyed. 01151_ C-30 ARC bursts open, deploying its payload. 01151_ D-53 Grenadier unfolds itself. Map ----- +----------------------------------------------------+ | ##??????????????????????????????????????? | | ############????????????????####???????? | | ## ## ##############?### ##??????? | | ### #??????? | | ############ ## ##?????? | | # #??????????# ## ##????? | | ## ##??????????# ###??? | | ### ### ##???????????# ##?? | | #?# #?####????????????#### %[ [ #?? | | ?# #????????????????????## =%* #?? | | ?# #?????????????????????## ! ##? | | ? #??????????????????????## #? | | #???????????????????????##### #? | | < #####???????????????????????????# ## #? | | ???????????????????????????????# ## #? | | ?????????????????????????####### ## #? | | ???????????????????? #? | | ?????????????????????????# ######## #? | | # ????????????????????????### #????### #? | | ?##???????????????????????## ##??## #? | | ???????????????????????#### ##?# #? | | ???????????????????????#d%u ### #? | | ???????????????????????# d## ## #? | | ???????????????????????# ###] ##? | | ???????????????????????# #?## #### #?? | | ???????????????????????# @#??## ##??# #? | | ???????????????????????# #???###???# #? | | ???????????????????????# a#?????????## ##? | | ???????????????????????#aa#??????????####?? | | ???????????????????????# a#???????????????? | | ???????????????????????#aa#???????????????? | | ???????????????????????#a #???????????????? | | ???????????????????????#aa#???????????????? | | ???????????????????????#*a#???????????????? | | ??????????????????????? =%#??????????????? | | ??????????????????????### #??????????????? | | ????????????????????????# ??????????????? | | ???????????????????????? a ?????????????? | | ???????????????????????? ????????????? | | ???????????????????????? ???????????? | | ????????????????????????# ## ??????????? | | ?????????????????????????###?# ??????????? | | ??????????????????????????????# ?????????? | | ???????????????????????????????# ????????? | | ????????????????????????????????# ????????? | | ??????????????????????????????????????????? | | ??????????????????????????????????????????? | | ??????????????????????????????????????????? | | ??????????????????????????????????????????? | | ??????????????????????????????????????????? | +----------------------------------------------------+ Best States ------------- Heat Dissipation 25 Energy Generation 10 Energy Capacity 250 Matter Stores 300 Matter Capacity 300 Sight Range 16 Terrain Scan Range 16 Terrain Scan Density 10 Evasion (%) 40 Recoil Reduction 2 Item Schematics ----------------- None Robot Schematics ------------------ None Fabricated ------------ Nothing Alien Tech Used ----------------- None Achievements -------------- None Challenges ------------ None Game ------ Seed LatentIntegratedTrap Manual? 0 Play Time 00:13:45 Cumulative 65.3 hours Start 2020.11.04 @ 11:15:00 End 2020.11.04 @ 11:26:23 Sessions 1 Manual Loads 0 Difficulty Rogue Special Mode None Game No. 61 Rogue 61 Adventurer 0 Explorer 0 Win Type - Total 0 Types 0/0/0/0/0/0/0/0/0 Lore% 45 Gallery% 49 Achievement% 50 Wizard Run 0 Options --------- ASCII 0 Keyboard 1 Movement Numpad Keybinds 0 Fullscreen 1 Font 12/Terminus Map View 83x54 Tactical HUD 1 Map Filters NONE Filters NONE Steam 1 RUN: bc061d1e-2c69-4c21-8e8c-cada0f31d644